bitfinex/quotes_ETHUSD_20220109
["timestamp","ask_amount","ask_price","bid_price","bid_amount"]
[1641732689476,1.6060633,3115.6,3115.3,0.00170528]
[1641732690110,0.80308,3115.5,3115.3,0.00170528]
[1641732690317,1.60614,3115.5,3115.3,0.00170528]
[1641732691512,0.3,3115.4,3115.3,0.00170528]
[1641732692313,2.60614,3115.5,3115.3,0.00170528]
[1641732693559,2.59758817,3115.5,3115.3,0.00170528]
[1641732693760,0.80302,3115.6,3115.3,0.00170528]
[1641732693962,4.5640523,3115.9,3115.3,1.94039789]
[1641732693963,3.2,3115.9,3115.3,1.94039789]
[1641732694360,0.00113684,3115.8,3115.4,0.00113685]
[1641732695061,0.13819997,3116.3,3115.5,1.4080092]
[1641732695464,0.0022737,3116.2,3115.6,0.00113684]
[1641732695662,0.8051437,3116.2,3115.6,0.00113684]
[1641732695862,0.00170527,3116.1,3115.6,0.00113684]
[1641732696261,0.00113685,3116.0,3115.6,0.00113684]
[1641732696663,0.00170527,3116.1,3115.6,0.00113684]
[1641732697063,0.00113685,3116.0,3115.6,0.00113684]
[1641732697314,0.00113685,3116.0,3115.6,2.73514562]
[1641732697515,0.00170527,3116.1,3115.6,2.73514562]
[1641732697916,0.00113685,3116.0,3115.7,1.87331241]
[1641732698126,5.8931,3117.1,3115.7,1.87331241]
[1641732698127,1.60583238,3117.4,3115.9,0.01287574]
[1641732698315,1.60583238,3117.4,3115.9,2.09782598]
[1641732698514,0.00284212,3116.5,3115.9,4.48850986]
[1641732698917,0.00227369,3116.4,3115.9,4.48850986]
[1641732699117,0.00227369,3116.4,3115.9,5.29095986]
[1641732699318,0.80249,3117.8,3117.2,1.38256568]
[1641732699518,0.80249,3117.8,3116.6,1.18785848]
[1641732699519,1.60498,3117.8,3116.6,1.18785848]
[1641732699718,3.2,3117.4,3116.6,1.18785848]
[1641732700119,0.00568423,3117.3,3116.6,1.18785848]
[1641732700318,0.00568423,3117.3,3116.7,2.14684253]
[1641732700519,0.00511581,3117.2,3116.8,1.18785848]
[1641732700722,0.00511581,3117.2,3117.0,1.39059767]
[1641732700964,3.2,3117.4,3117.1,10.00208072]
[1641732701163,3.2,3117.4,3117.1,2.15208072]
[1641732701364,0.00568423,3117.3,3117.1,2.15208072]
[1641732701760,0.00511581,3117.2,3117.1,6.77663594]
[1641732701962,0.00511581,3117.2,3117.0,1.39059767]
[1641732702162,0.00511581,3117.2,3117.1,1.18785848]
[1641732702362,3.2,3117.4,3117.1,1.18785848]
[1641732702762,3.2,3117.4,3117.0,2.57845615]
[1641732702763,0.00568423,3117.3,3117.0,2.57845615]
[1641732703164,0.00511581,3117.2,3117.0,2.57845615]
[1641732703367,0.00511581,3117.2,3117.0,1.18785848]
[1641732703564,0.00454739,3117.1,3116.9,1.18785848]
[1641732703764,0.015127,3117.8,3116.9,1.18785848]
[1641732703966,46.6286261,3117.4,3116.9,1.18785848]
[1641732704164,0.00113684,3117.3,3116.9,1.18785848]
[1641732704364,1.80371414,3117.3,3116.9,1.18785848]
[1641732704567,0.6,3117.2,3116.5,5.0956]
[1641732704813,0.6,3117.2,3116.5,4.83845848]
[1641732705012,0.80264,3117.1,3116.6,0.00284212]
[1641732705612,0.80264,3117.1,3116.1,6.271926]
[1641732705917,0.00227369,3117.0,3116.4,0.00113685]
[1641732706312,1.60508,3117.8,3116.4,2.39068388]
[1641732706313,0.00170527,3116.9,3116.4,2.39068388]
[1641732706713,0.00113685,3116.8,3116.6,0.59590793]
[1641732707114,0.80257,3117.5,3116.6,0.59590793]
[1641732707517,0.80709739,3117.4,3116.6,0.59590793]
[1641732707714,1.60963739,3117.4,3116.6,0.59590793]
[1641732707913,2.60509,3117.7,3116.7,8.35]
[1641732707914,2.10112053,3117.7,3116.7,8.35]
[1641732708117,2.10112053,3117.7,3116.7,10.30122172]
[1641732708314,0.00170527,3117.6,3116.8,0.00284211]
[1641732708569,0.00170527,3117.6,3117.3,1.97478945]
[1641732708765,0.00113685,3117.5,3117.3,1.97478945]
[1641732708966,0.00113685,3117.5,3117.4,6.6865794]
[1641732709167,0.00341054,3117.9,3117.4,6.6865794]
[1641732709377,1.605523,3118.0,3117.4,6.6865794]
[1641732709378,0.00113685,3117.5,3117.4,6.6865794]
[1641732709570,0.00284212,3117.8,3117.4,6.6865794]
[1641732709767,0.00113685,3117.5,3117.4,6.6865794]
[1641732709967,0.0022737,3117.7,3117.4,6.69905306]
[1641732710168,0.00113685,3117.5,3117.4,6.69905306]
[1641732710367,0.80221,3118.7,3117.9,1.35637645]
[1641732710567,3.2,3117.8,3117.6,1.97588785]
[1641732711370,3.2,3117.8,3117.4,0.01247366]
[1641732711567,3.2,3117.8,3117.5,2.39068388]
[1641732711767,3.2,3117.8,3117.6,1.88116356]
[1641732711967,3.2,3117.8,3117.5,4.28430952]
[1641732712226,3.2,3117.8,3117.6,1.88760335]
[1641732713827,3.2,3117.8,3117.4,3.47867152]
[1641732714024,3.2,3117.8,3117.4,2.40315754]
[1641732714224,3.2,3117.8,3117.4,0.01247366]
[1641732714826,4.0024624,3117.8,3117.5,1.19237892]
[1641732715025,4.8049224,3117.8,3117.5,1.19237892]
[1641732715524,0.80246,3117.7,3117.4,1.19237892]
[1641732716363,0.80246,3117.7,3117.5,1.19237892]
[1641732716558,1.60493,3117.7,3117.5,1.19237892]
[1641732716961,1.60493,3117.7,3117.3,1.19237892]
[1641732717362,4.00246,3117.8,3117.3,1.19237892]
[1641732717561,3.2,3117.8,3117.3,1.19237892]
[1641732718562,3.2,3117.8,3117.4,1.19237892]
[1641732719912,3.2,3117.8,3117.3,1.19237892]
[1641732720312,3.2,3117.8,3117.5,2.73318736]
[1641732721110,3.2,3117.8,3117.2,3.92556628]
[1641732721312,4.00242,3117.8,3117.2,3.92556628]
[1641732721515,4.00242,3117.8,3117.6,2.73318736]
[1641732721713,1.60494,3117.7,3117.6,2.73318736]
[1641732722114,1.60494,3117.7,3117.3,0.00113685]
[1641732722312,0.802497,3117.6,3117.3,0.00113685]
[1641732723012,0.802497,3117.6,3117.1,0.00227369]
[1641732723213,1.605,3117.5,3117.1,0.00227369]
[1641732723473,1.605,3117.5,3117.3,2.73318736]
[1641732723674,0.8025,3117.5,3117.3,2.73318736]
[1641732723874,5.48297671,3117.8,3117.3,1.28918736]
[1641732724077,3.2,3117.8,3117.3,1.28918736]
[1641732724274,0.80243,3117.7,3117.3,1.18139726]
[1641732724675,0.80243,3117.7,3117.3,1.11739726]
[1641732724975,3.2,3117.8,3117.3,1.11739726]
[1641732725276,3.2,3117.8,3117.4,0.54477932]
[1641732728224,0.28490953,3117.8,3117.4,0.54477932]
[1641732728425,0.28490953,3117.8,3117.3,1.11739726]
[1641732728627,0.28490953,3117.8,3117.1,0.00227369]
[1641732730026,0.67804497,3117.7,3117.1,0.00227369]
[1641732730428,1.48047497,3117.7,3117.1,0.00227369]
[1641732731074,1.48050497,3117.7,3117.1,0.00227369]
[1641732731270,1.48051497,3117.7,3117.1,0.00227369]
[1641732731470,0.67804497,3117.7,3117.1,0.00227369]
[1641732732069,0.80247,3117.5,3117.1,0.00227369]
[1641732732275,0.80252,3117.4,3117.1,0.00227369]
[1641732732669,0.80247,3117.5,3117.1,0.00227369]
[1641732733271,46.0487752,3118.2,3117.1,0.00227369]
[1641732733671,0.8024192,3117.8,3117.1,0.00227369]
[1641732733872,4.83078336,3118.1,3117.1,0.00227369]
[1641732734072,0.00113685,3117.7,3117.1,0.00227369]
[1641732734272,0.5513093,3117.9,3117.1,0.00227369]
[1641732734732,0.00170527,3117.8,3117.1,0.00227369]
[1641732734923,0.80245,3117.7,3117.1,0.00227369]
[1641732735123,0.80358685,3117.7,3117.1,0.00227369]
[1641732735626,0.80246,3117.5,3117.1,0.00227369]
[1641732736124,0.80251,3117.4,3117.1,0.00227369]
[1641732736924,1.6050808,3117.3,3116.9,1.19578946]
[1641732737324,1.6050808,3117.3,3117.0,0.00284212]
[1641732738325,2.14725458,3117.3,3116.8,0.00397896]
[1641732738763,2.94979458,3117.3,3116.8,0.00397896]
[1641732738962,2.94979458,3117.3,3116.9,1.19237892]
[1641732739369,1.0,3117.2,3117.0,0.00284212]
[1641732739563,2.22630673,3117.1,3117.0,0.00284212]
[1641732739963,0.3,3117.1,3117.0,0.00284212]
[1641732740264,2.50259021,3117.1,3117.0,0.00284212]
[1641732740464,0.3,3117.1,3117.0,0.00284212]
[1641732740662,1.3,3117.1,3117.0,0.00284212]
[1641732740862,1.3,3117.1,3116.8,0.00397896]
[1641732740863,5.20533,3117.1,3116.8,0.00397896]
[1641732741067,1.80267,3117.0,3116.8,0.00397896]
[1641732741665,1.80267,3117.0,3116.8,1.19635788]
[1641732742066,1.80267,3117.0,3116.9,0.00341054]
[1641732742718,1.80267,3117.0,3116.4,2.14204176]
[1641732742719,0.55266461,3116.7,3116.4,2.14204176]
[1641732742917,2.4079749,3116.8,3116.4,2.14204176]
[1641732743119,0.80266,3116.7,3116.5,0.00170527]
[1641732743717,1.80266,3116.7,3116.5,0.00170527]
[1641732743918,1.40153535,3116.7,3116.1,1.1032414]
[1641732744118,0.00170527,3116.6,3115.9,6.3055]
[1641732744320,0.00170527,3116.6,3116.3,2.73362483]
[1641732744520,0.00113685,3116.5,3116.3,2.73362483]
[1641732744923,0.80437527,3116.6,3116.3,2.73362483]
[1641732745121,0.00170527,3116.6,3116.3,2.73362483]
[1641732745322,1.59887535,3116.7,3116.1,10.52961692]
[1641732745822,0.59887535,3116.7,3116.4,2.73362483]
[1641732746265,0.59887535,3116.7,3116.2,2.7353301]
[1641732746664,0.59887535,3116.7,3116.3,0.00113685]
[1641732746665,1.40153535,3116.7,3116.3,0.00113685]
[1641732747669,4.30688785,3116.7,3116.3,0.00113685]
[1641732748367,6.50589237,3116.7,3116.3,0.00113685]
[1641732748669,4.30688785,3116.7,3116.3,0.00113685]
[1641732749067,1.39072289,3116.7,3116.3,0.00113685]
[1641732749269,1.69072289,3116.7,3116.1,0.0022737]
[1641732749467,1.45092334,3116.4,3116.1,0.0022737]
[1641732749722,0.80271,3116.4,3116.1,0.0022737]
[1641732750318,1.80271,3116.4,3116.1,0.0022737]
[1641732750717,0.69209969,3116.4,3116.1,0.0022737]
[1641732751119,1.60542,3116.6,3116.1,0.0022737]
[1641732751319,0.80271,3116.6,3116.1,0.0022737]
[1641732752119,45.27304032,3116.5,3116.1,0.0022737]
[1641732752321,0.80271,3116.4,3116.1,0.0022737]
[1641732752723,0.80271,3116.4,3116.1,2.73589853]
[1641732753119,0.80271,3116.4,3116.2,0.00170527]
[1641732754366,0.80271,3116.4,3116.3,1.19055505]
[1641732754667,0.80271,3116.4,3116.3,1.1916919]
[1641732755067,1.80271,3116.4,3116.3,1.1916919]
[1641732755467,1.80271,3116.4,3116.3,0.00113685]
[1641732755667,0.80271,3116.4,3116.3,0.00113685]
[1641732756066,1.80271,3116.4,3116.3,0.00113685]
[1641732757313,2.60546,3116.4,3116.2,0.00170527]
[1641732757518,20.87256,3116.4,3116.3,1.19055505]
[1641732757819,20.87256,3116.4,3116.3,1.1916919]
[1641732758014,20.87256,3116.4,3116.3,0.1916919]
[1641732758215,20.87256,3116.4,3116.3,0.00113685]
[1641732759516,20.87256,3116.4,3115.4,0.00625266]
[1641732759716,1.60583,3115.8,3115.4,0.00625266]
[1641732760016,2.40873,3115.8,3115.4,0.00625266]
[1641732760214,2.40873,3115.8,3115.6,1.03313075]
[1641732760215,3.40873,3115.8,3115.6,1.03313075]
[1641732760419,1.0,3115.8,3115.3,4.70740232]
[1641732760617,0.00170527,3115.7,3115.3,4.70740232]
[1641732760816,0.00170527,3115.7,3115.5,2.73362483]
[1641732761073,0.00113685,3115.6,3115.5,2.73362483]
[1641732761270,0.00113685,3115.6,3115.5,2.66962483]
[1641732761469,0.00113685,3115.6,3115.1,4.63023723]
[1641732761870,2.29602104,3115.7,3115.3,13.4]
[1641732762171,2.29602104,3115.7,3115.3,13.40170528]
[1641732762370,2.29602104,3115.7,3115.4,1.34746531]
[1641732766217,2.29602104,3115.7,3115.3,0.00170528]
[1641732767819,2.29602104,3115.7,3115.4,0.52270298]
[1641732768866,2.29602104,3115.7,3115.4,2.91332535]
[1641732769668,0.80281,3116.0,3115.4,2.91332535]
[1641732770067,0.00170527,3115.9,3115.4,2.91332535]
[1641732770367,0.00113684,3115.8,3115.4,2.91332535]
[1641732770571,0.00113684,3115.8,3115.4,0.52270298]
[1641732770770,2.3,3115.7,3115.4,0.52270298]
[1641732771369,2.3,3115.7,3115.3,3.40299477]
[1641732771769,1.60692884,3115.8,3115.4,2.39175922]
[1641732772228,0.00113684,3115.8,3115.4,2.39175922]
[1641732772422,0.00113684,3115.8,3115.5,0.4980573]
[1641732772821,0.00113684,3115.8,3115.4,0.00113685]
[1641732773024,1.60691684,3115.8,3115.4,0.00113685]
[1641732773225,2.40979874,3115.8,3115.4,0.00113685]
[1641732773823,1.60690874,3115.8,3115.4,0.00113685]
[1641732774023,2.95009558,3115.8,3115.4,0.00113685]
[1641732774424,0.80291,3115.6,3115.4,0.00113685]
[1641732777268,0.8029228,3115.7,3115.4,0.00113685]
[1641732777676,1.6058528,3115.7,3115.4,0.00113685]
[1641732778671,1.6058503,3115.6,3115.4,0.00113685]
[1641732779927,2.4088003,3115.6,3115.4,0.00113685]
[1641732781529,1.6058503,3115.6,3115.4,0.00113685]
[1641732781728,0.80291,3115.6,3115.4,0.00113685]
[1641732782129,3.40976924,3115.8,3115.4,0.00113685]
[1641732782629,1.60686924,3115.8,3115.6,1.37963506]
[1641732782828,0.00113684,3115.8,3115.6,1.37963506]
[1641732784071,0.00113684,3115.8,3115.7,15.3843874]
[1641732785371,0.00113684,3115.8,3115.7,2.7343874]
[1641732785770,0.00113684,3115.8,3115.7,4.62786513]
[1641732786174,0.00113684,3115.8,3115.7,9.17786513]
[1641732786771,0.00113684,3115.8,3115.7,7.2843874]
[1641732788029,0.00113684,3115.8,3115.7,2.7343874]
[1641732790433,14.56247366,3115.8,3115.7,2.7343874]
[1641732790634,17.01247366,3115.8,3115.7,2.2588874]
[1641732790832,14.56247366,3115.8,3115.7,2.2588874]
[1641732791474,0.58387318,3115.8,3115.7,2.2588874]
[1641732792270,0.58387318,3115.8,3115.4,0.00113685]
[1641732792271,1.68693318,3115.8,3115.4,0.00113685]
[1641732792468,1.60616,3115.7,3115.4,0.00113685]
[1641732792669,1.60616,3115.7,3115.3,0.00284212]
[1641732792869,0.8030842,3115.6,3115.3,0.00284212]
[1641732793072,2.4092442,3115.6,3115.3,0.00284212]
[1641732793270,0.80308,3115.5,3115.3,0.00284212]
[1641732793770,1.80308,3115.5,3115.3,0.00284212]
[1641732793969,3.4092648,3115.5,3115.3,0.00284212]
[1641732794570,4.2123648,3115.5,3115.3,0.00284212]
[1641732794824,5.0154448,3115.5,3115.3,0.00284212]
[1641732795020,5.0154448,3115.5,3114.9,4.44535221]
[1641732795223,0.80304,3115.3,3114.9,1.19890409]
[1641732795524,0.8030341,3115.2,3115.0,1.20060936]
[1641732795721,0.80301,3115.2,3115.0,1.20060936]
[1641732795922,1.0,3115.5,3115.0,1.13660936]
[1641732796121,0.3,3115.6,3114.9,1.86631687]
[1641732796323,0.00170527,3115.3,3114.9,1.86631687]
[1641732796726,0.00113685,3115.2,3114.9,1.86631687]
[1641732796921,0.00113685,3115.2,3114.8,1.20573051]
[1641732797121,0.00341055,3115.6,3114.9,1.84538744]
[1641732797321,0.00341055,3115.6,3115.2,0.54069923]
[1641732797520,3.2117154,3115.8,3115.2,0.54069923]
[1641732797521,0.00284212,3115.5,3115.2,0.54069923]
[1641732797923,0.8052237,3115.4,3114.8,1.20573051]
[1641732798124,0.0022737,3115.4,3114.8,1.20573051]
[1641732799180,0.8029644,3115.3,3115.1,0.57234174]
[1641732799380,0.8052137,3115.4,3115.1,0.57234174]
[1641732799578,0.00113685,3115.2,3114.8,1.20573051]
[1641732800678,0.00113685,3115.2,3114.9,0.61721165]
[1641732800881,0.00113685,3115.2,3114.6,3.6976]
[1641732800882,0.80410685,3115.2,3114.6,3.6976]
[1641732801079,0.80410685,3115.2,3114.5,12.64982237]
[1641732801280,0.80410685,3115.2,3114.7,0.00170527]
[1641732801883,0.80304,3115.1,3114.7,0.00170527]
[1641732802080,1.60606,3115.1,3114.7,0.00170527]
[1641732802520,2.4091,3115.1,3114.7,0.00170527]
[1641732803020,2.4091,3115.1,3114.6,0.00227369]
[1641732803220,0.80304,3114.9,3114.6,0.00227369]
[1641732805968,1.6061049,3114.9,3114.6,0.00227369]
[1641732806366,1.6061049,3114.9,3114.8,1.19406759]
[1641732806869,0.00113685,3115.2,3114.8,1.19520443]
[1641732807967,0.00113685,3115.2,3114.8,0.00113684]
[1641732808372,1.60605,3115.1,3114.3,0.68193905]
[1641732808571,0.3,3115.0,3114.3,0.68193905]
[1641732808770,0.3,3115.0,3114.4,0.00341054]
[1641732809170,41.57183108,3114.5,3114.4,0.00341054]
[1641732810227,43.17918634,3114.5,3114.4,0.00341054]
[1641732810630,1.60735526,3114.5,3114.4,2.73881647]
[1641732810831,1.09902464,3114.7,3114.4,2.73881647]
[1641732811238,1.09902464,3114.7,3114.5,0.00284211]
[1641732811631,0.80316,3114.6,3114.5,0.00284211]
[1641732811830,1.6062957,3114.6,3114.5,0.00284211]
[1641732812234,53.8774148,3114.6,3114.5,0.00284211]
[1641732812432,53.8774148,3114.6,3114.4,1.29224804]
[1641732812632,53.51261638,3114.6,3114.3,0.67796009]
[1641732813569,53.51261638,3114.6,3114.3,0.61396009]
[1641732813769,53.51261638,3114.6,3114.3,1.80802768]
[1641732814173,0.80313,3114.5,3114.3,1.80802768]
[1641732814372,2.41048526,3114.5,3114.4,0.008495]
[1641732819145,2.41048526,3114.5,3114.2,1.68925208]
[1641732819446,2.41048526,3114.5,3114.3,0.00113685]
[1641732819645,2.41048526,3114.5,3114.3,1.19520444]
[1641732820847,1.60735526,3114.5,3114.3,1.19520444]
[1641732821077,1.60735526,3114.5,3114.3,3.40179159]
[1641732821374,1.60735526,3114.5,3114.4,19.04104104]
[1641732821574,0.00113685,3115.2,3114.5,13.35]
[1641732821774,0.00113685,3115.2,3114.6,2.13428342]
[1641732821975,1.1917,3116.1,3114.6,2.13428342]
[1641732821976,0.00341054,3115.1,3114.7,1.2122]
[1641732822177,0.00341054,3115.1,3114.8,1.54512279]
[1641732822380,0.00284211,3115.0,3114.8,1.54512279]
[1641732822776,0.00227369,3114.9,3114.8,8.74512279]
[1641732824581,0.00227369,3114.9,3114.8,7.73972257]
[1641732825526,0.00227369,3114.9,3114.8,9.0366721]
[1641732825726,1.59308515,3115.4,3114.8,9.0366721]
[1641732826225,0.00227369,3115.3,3114.8,9.0366721]
[1641732826625,0.00170527,3115.2,3114.8,9.0366721]
[1641732826827,0.00170527,3115.2,3114.8,8.9866721]
[1641732827026,0.00113685,3115.1,3114.8,7.68972257]
[1641732827225,0.00113685,3115.1,3114.8,0.48972257]
[1641732829073,0.00113685,3115.1,3114.8,0.41394471]
[1641732830775,1.60597,3115.3,3114.9,5.1]
[1641732830776,0.29577793,3115.3,3114.9,5.1]
[1641732830976,0.29577793,3115.3,3114.9,5.10113685]
[1641732831377,0.29577793,3115.3,3114.9,0.00113685]
[1641732831577,1.6059733,3115.2,3114.9,0.00113685]
[1641732831777,0.80307,3115.1,3114.9,0.00113685]
[1641732831976,1.57106424,3115.2,3114.5,0.00341054]
[1641732832228,0.76807424,3115.2,3114.5,0.00341054]
[1641732833423,0.80308,3115.0,3114.6,1.86124365]
[1641732833622,0.80308,3114.9,3114.6,1.86124365]
[1641732833825,1.6061568,3114.9,3114.7,0.0022737]
[1641732834123,1.6061568,3114.9,3114.7,2.73748636]
[1641732834524,1.6061568,3114.9,3114.8,0.00170527]
[1641732835328,1.6061568,3114.9,3114.7,0.0022737]
[1641732835824,1.6061568,3114.9,3114.7,2.73748636]
[1641732836274,1.6061568,3114.9,3114.8,0.00170527]
[1641732838278,1.6061568,3114.9,3114.8,1.19790006]
[1641732838279,5.05789147,3114.9,3114.8,1.19790006]
[1641732838479,4.35789147,3114.9,3114.8,1.19790006]
[1641732838676,5.66629147,3114.9,3114.8,1.19790006]
[1641732839080,5.66629147,3114.9,3114.8,0.00170527]
[1641732839477,0.80324,3114.8,3114.5,0.00341054]
[1641732839729,2.40972,3114.7,3114.5,0.00341054]
[1641732839925,4.50414102,3114.7,3114.3,1.19850111]
[1641732840125,2.89879786,3114.7,3114.3,1.19850111]
[1641732840529,0.80437684,3114.7,3114.3,1.19850111]
[1641732840926,1.10437684,3114.7,3114.3,1.19850111]
[1641732841227,1.10437684,3114.7,3114.2,2.42481799]
[1641732841627,0.80324,3114.5,3114.3,0.00113685]
[1641732841926,1.60648,3114.5,3114.2,1.25460004]
[1641732842130,0.00113684,3114.7,3114.3,1.98992754]
[1641732842726,0.00113684,3114.7,3114.2,2.45330004]
[1641732842926,0.00113684,3114.7,3114.2,3.59102764]
[1641732843592,0.00113684,3114.7,3114.2,1.20040527]
[1641732843792,0.80317,3114.5,3114.2,0.00170527]
[1641732843992,0.80324,3114.4,3114.2,0.00170527]
[1641732844892,0.80324,3114.4,3114.0,0.00284212]
[1641732845292,1.60649,3114.3,3114.0,0.00284212]
[1641732845696,1.60649,3114.3,3113.9,0.00341054]
[1641732846092,0.63420984,3114.5,3113.9,0.00341054]
[1641732846293,0.80321,3114.4,3113.9,0.00341054]
[1641732846493,1.6064149,3114.4,3113.9,0.00341054]
[1641732846891,0.00113684,3114.7,3113.9,0.00341054]
[1641732847099,0.80430684,3114.7,3113.9,2.39403291]
[1641732847335,0.80430684,3114.7,3114.2,1.26056035]
[1641732847537,0.8031638,3114.6,3114.2,1.26056035]
[1641732848333,0.00113684,3114.7,3114.2,1.26056035]
[1641732848530,0.8031372,3114.6,3114.2,1.26056035]
[1641732848730,0.00113684,3114.7,3114.2,1.26056035]
[1641732849132,0.00113684,3114.7,3114.4,0.00850587]
[1641732849732,0.00113684,3114.7,3114.5,0.60531476]
[1641732850333,0.00113684,3114.7,3114.5,1.8037225]
[1641732851178,39.2209009,3115.0,3114.5,1.8037225]
[1641732851581,0.00113685,3114.9,3114.5,1.8037225]
[1641732851782,0.00113685,3114.9,3114.6,1.19840774]
[1641732851979,0.80420685,3114.9,3114.6,1.19840774]
[1641732852381,1.60728385,3114.9,3114.6,1.19840774]
[1641732852782,1.60728385,3114.9,3114.5,1.8037225]
[1641732853384,0.00113685,3114.9,3114.6,1.19840774]
[1641732853587,37.91704366,3115.0,3114.6,1.19840774]
[1641732853784,37.91704366,3115.0,3114.7,0.00113685]
[1641732854385,38.72012366,3115.0,3114.7,0.00113685]
[1641732854729,0.80307,3114.9,3114.7,1.19954459]
[1641732855124,0.80307,3114.9,3114.7,0.00113685]
[1641732856127,2.39606515,3115.4,3114.7,2.98202325]
[1641732856623,0.00113685,3115.1,3114.7,2.98202325]
[1641732856823,0.00113685,3115.1,3114.8,1.19840774]
[1641732857224,0.00113685,3115.1,3114.9,1.86167743]
[1641732857924,0.00113685,3115.1,3114.8,1.19840774]
[1641732858789,0.80420685,3115.1,3114.8,1.19840774]
[1641732859085,0.80418375,3115.1,3114.7,1.19954459]
[1641732859285,0.00113685,3115.1,3114.7,1.19954459]
[1641732861088,0.00113685,3115.1,3114.8,1.19840774]
[1641732861688,0.00113685,3115.1,3114.8,2.73535178]
[1641732862087,0.00113685,3115.1,3114.7,1.19954459]
[1641732862727,0.00113685,3115.1,3114.7,3.93489637]
[1641732863127,0.00113685,3115.1,3114.8,1.81948836]
[1641732863328,0.00113685,3115.1,3114.8,3.0178961]
[1641732863531,0.00113685,3115.1,3114.8,1.19840774]
[1641732864129,0.00113685,3115.1,3114.9,2.73535178]
[1641732866176,0.00113685,3115.1,3114.8,4.53913541]
[1641732866376,0.00113685,3115.1,3114.8,4.55528799]
[1641732866579,0.00113685,3115.1,3114.8,2.73535178]
[1641732866777,0.00113685,3115.1,3114.9,2.73535178]
[1641732869927,0.00113685,3115.1,3114.9,3.93375952]
[1641732870327,0.00113685,3115.1,3114.8,3.93375952]
[1641732870528,1.60726165,3115.1,3114.8,3.93375952]
[1641732871130,1.60726165,3115.1,3114.8,2.73535178]
[1641732871429,1.6038511,3115.1,3114.8,2.73535178]
[1641732871631,1.6038511,3115.1,3114.7,0.00113685]
[1641732871828,1.6062096,3114.9,3114.7,0.00113685]
[1641732872728,0.80311,3115.0,3114.7,0.00113685]
[1641732872729,0.7680407,3115.0,3114.7,0.00113685]
[1641732873586,0.80311,3114.9,3114.7,0.00113685]
[1641732873786,2.4093296,3114.9,3114.7,0.00113685]
[1641732873986,2.4093296,3114.9,3114.7,3.93489637]
[1641732874189,1.6062096,3114.9,3114.7,2.48889637]
[1641732874387,0.80311,3114.9,3114.7,2.48889637]
[1641732874591,0.00113685,3115.1,3114.5,0.69591131]
[1641732874987,0.00170527,3115.0,3114.5,0.63191131]
[1641732875388,0.00113685,3114.9,3114.5,0.63191131]
[1641732875786,0.00284212,3115.2,3114.5,0.63191131]
[1641732876186,0.0022737,3115.1,3114.5,0.63191131]
[1641732876589,0.00170527,3115.0,3114.5,0.63191131]
[1641732876994,0.00113685,3114.9,3114.5,0.63191131]
[1641732877430,0.00170527,3115.0,3114.4,3.65917268]
[1641732877830,0.00113685,3114.9,3114.5,0.00113684]
[1641732878228,0.80306,3114.9,3114.5,0.00113684]
[1641732879030,0.80306,3114.9,3114.4,0.00170527]
[1641732880035,2.4092433,3114.9,3114.4,0.00170527]
[1641732880231,0.80311,3114.8,3114.4,0.00170527]
[1641732880833,3.38827949,3114.9,3114.4,0.00170527]
[1641732881079,0.8031186,3114.7,3114.4,0.00170527]
[1641732881276,1.36413765,3114.7,3114.4,0.00170527]
[1641732881476,3.44973832,3114.7,3114.4,0.00170527]
[1641732881776,1.36414765,3114.7,3114.4,0.00170527]
[1641732882177,0.80318,3114.6,3114.3,3.73210527]
[1641732882375,0.80317,3114.5,3114.3,3.73210527]
[1641732882576,1.60634,3114.5,3114.3,3.73210527]
[1641732882775,1.60634,3114.5,3113.9,3.63891416]
[1641732882977,1.60634,3114.5,3113.9,3.57491416]
[1641732883177,1.60634,3114.5,3114.0,0.00227369]
[1641732884379,1.60634,3114.5,3114.4,1.20048819]
[1641732885042,0.80318,3114.4,3114.0,2.39289606]
[1641732885236,3.2127104,3114.4,3114.0,2.39289606]
[1641732885436,3.2127104,3114.4,3114.1,0.00170527]
[1641732886239,2.4095304,3114.4,3114.1,0.00170527]
[1641732886439,0.80318,3114.4,3114.1,0.00170527]
[1641732887639,3.2126886,3114.4,3114.1,0.00170527]
[1641732887842,2.4095086,3114.4,3114.1,0.00170527]
[1641732888477,1.6063486,3114.4,3114.1,0.00170527]
[1641732889479,2.4095386,3114.4,3114.1,0.00170527]
[1641732889678,1.6063803,3114.3,3114.1,0.00170527]
[1641732890583,2.4095903,3114.3,3114.1,0.00170527]
[1641732890980,1.6063803,3114.3,3114.1,0.00170527]
[1641732891380,1.60755685,3114.6,3113.9,0.00284211]
[1641732892324,0.8032186,3114.1,3113.9,0.00284211]
[1641732892528,0.80318,3114.4,3114.3,1.19884769]
[1641732893627,2.4094924,3114.4,3114.3,1.19884769]
[1641732894428,1.6063124,3114.4,3114.2,1.19884769]
[1641732894625,0.80323,3114.3,3114.2,1.19884769]
[1641732895129,0.80323,3114.3,3114.2,1.19998453]
[1641732896178,0.80323,3114.3,3114.2,0.00113684]
[1641732896776,0.80323,3114.3,3114.2,1.19998453]
[1641732897976,0.80323,3114.3,3114.2,0.00113684]
[1641732898976,1.60642,3114.3,3114.1,1.13598453]
[1641732899179,2.4096069,3114.3,3114.1,1.13598453]
[1641732899578,2.4096069,3114.3,3114.2,2.73585467]
[1641732900227,2.4096069,3114.3,3114.1,1.13598453]
[1641732900627,2.4096069,3114.3,3113.8,2.73585467]
[1641732900829,0.8032035,3114.1,3114.0,0.62300546]
[1641732901828,0.8032035,3114.1,3114.0,3.35886013]
[1641732902328,2.4095296,3114.3,3114.0,0.62300546]
[1641732902531,1.6063196,3114.3,3114.0,0.62300546]
[1641732903129,1.6063196,3114.3,3114.1,2.73585467]
[1641732904782,3.2126896,3114.3,3114.1,2.73585467]
[1641732905682,3.2126896,3114.3,3113.9,0.00170527]
[1641732905879,2.4094996,3114.3,3113.9,0.00170527]
[1641732906079,0.8032653,3114.1,3113.9,0.00170527]
[1641732906279,1.6065253,3114.1,3113.9,0.00170527]
[1641732906878,2.4097853,3114.1,3113.9,0.00170527]
[1641732907327,1.6065144,3114.0,3113.7,1.85069188]
[1641732907529,0.80326,3114.0,3113.8,1.40001151]
[1641732907728,0.80439685,3114.0,3113.8,1.40001151]
[1641732908634,1.60765685,3114.0,3113.8,1.33601151]
[1641732908836,2.41091125,3114.0,3113.8,1.33601151]
[1641732909635,2.41091125,3114.0,3113.8,1.92239063]
[1641732910333,0.00113685,3114.0,3113.8,1.92239063]
[1641732911682,3.21228,3115.1,3113.9,15.95]
[1641732911883,3.21228,3115.1,3113.9,15.96288486]
[1641732912082,0.00341054,3114.6,3113.9,15.96288486]
[1641732912281,0.00341054,3114.6,3113.9,18.35350723]
[1641732912483,0.00284212,3114.5,3113.9,18.35350723]
[1641732912683,0.00284212,3114.5,3114.4,1.20443659]
[1641732912882,1.6061126,3114.7,3114.4,1.88412563]
[1641732913286,0.80704896,3114.7,3114.4,1.20443659]